bitfinex-derivatives/quotes_BTCF0:USTF0_20250514
["timestamp","ask_amount","ask_price","bid_price","bid_amount"]
[1747189646157,0.69669185,103680.0,103670.0,0.69213342]
[1747189646644,0.6185915,103680.0,103670.0,0.69213342]
[1747189646850,0.69669185,103680.0,103670.0,0.69213342]
[1747189648539,0.6185915,103680.0,103670.0,0.69213342]
[1747189648745,0.69669185,103680.0,103670.0,0.69213342]
[1747189649654,1.05749185,103680.0,103670.0,0.54457587]
[1747189649954,1.05749185,103680.0,103670.0,0.35166577]
[1747189650157,1.05749185,103680.0,103670.0,0.18966577]
[1747189650452,1.0094915,103680.0,103670.0,0.18966577]
[1747189650654,1.08759185,103680.0,103670.0,0.18966577]
[1747189652154,1.08759185,103680.0,103670.0,0.35166577]
[1747189652450,1.0094915,103680.0,103670.0,0.35166577]
[1747189652657,1.08759185,103680.0,103670.0,0.54457587]
[1747189653153,1.08759185,103680.0,103670.0,0.38257587]
[1747189657148,1.08759185,103680.0,103670.0,0.54457587]
[1747189659158,1.08759185,103680.0,103670.0,0.38257587]
[1747189659355,1.1656922,103680.0,103670.0,0.15956577]
[1747189659558,1.1656922,103680.0,103670.0,0.12886577]
[1747189660453,1.1656922,103680.0,103670.0,0.13448648]
[1747189660657,1.0094915,103680.0,103670.0,0.13448648]
[1747189660859,1.1656922,103680.0,103670.0,0.19668648]
[1747189662656,1.0094915,103680.0,103670.0,0.19668648]
[1747189662864,1.1656922,103680.0,103670.0,0.19668648]
[1747189663446,1.1656922,103680.0,103670.0,0.12886577]
[1747189664659,1.0094915,103680.0,103670.0,0.12886577]
[1747189664858,1.1656922,103680.0,103670.0,0.12886577]
[1747189667359,1.1656922,103680.0,103670.0,0.15886577]
[1747189668455,1.0094915,103680.0,103670.0,0.19126577]
[1747189668657,1.38343185,103680.0,103670.0,0.19126577]
[1747189669362,1.4615322,103680.0,103670.0,0.19126577]
[1747189670466,1.4615322,103680.0,103670.0,0.19688648]
[1747189670667,0.7399322,103680.0,103670.0,0.19688648]
[1747189670869,1.4615322,103680.0,103670.0,0.19688648]
[1747189671163,1.3053315,103680.0,103670.0,0.19688648]
[1747189671374,1.4615322,103680.0,103670.0,0.19688648]
[1747189672271,1.53478296,103680.0,103670.0,0.19688648]
[1747189676261,1.4615322,103680.0,103670.0,0.19688648]
[1747189678570,1.3053315,103680.0,103670.0,0.19688648]
[1747189678776,1.4615322,103680.0,103670.0,0.19688648]
[1747189679670,1.3053315,103680.0,103670.0,0.19688648]
[1747189679973,1.4615322,103680.0,103670.0,0.19688648]
[1747189680174,1.4615322,103680.0,103670.0,0.35888648]
[1747189680475,0.9174915,103680.0,103670.0,2.12989693]
[1747189681074,0.9174915,103680.0,103670.0,2.05179658]
[1747189681274,0.99559185,103680.0,103670.0,2.05179658]
[1747189682161,0.9174915,103680.0,103670.0,2.05179658]
[1747189683374,1.02719185,103680.0,103670.0,2.05179658]
[1747189684379,0.9490915,103680.0,103670.0,2.05179658]
[1747189684566,1.02719185,103680.0,103670.0,2.05179658]
[1747189685471,1.02719185,103680.0,103670.0,0.55179658]
[1747189685975,1.02719185,103680.0,103670.0,2.05179658]
[1747189687779,0.9490915,103680.0,103670.0,2.05179658]
[1747189688077,1.02719185,103680.0,103670.0,2.05179658]
[1747189692880,1.02719185,103680.0,103670.0,1.85888648]
[1747189693177,1.02719185,103680.0,103670.0,2.05179658]
[1747189696683,0.9490915,103680.0,103670.0,2.05179658]
[1747189696873,1.02719185,103680.0,103670.0,2.05179658]
[1747189697283,0.9490915,103680.0,103670.0,2.05179658]
[1747189697478,1.02719185,103680.0,103670.0,2.05179658]
[1747189702283,0.66639185,103680.0,103670.0,2.05179658]
[1747189702583,0.5882915,103680.0,103670.0,2.05179658]
[1747189702783,0.66639185,103680.0,103670.0,2.05179658]
[1747189703986,0.5566915,103680.0,103670.0,2.12989693]
[1747189705085,0.1938915,103680.0,103670.0,2.12427622]
[1747189705383,0.1938915,103680.0,103670.0,1.96227622]
[1747189705687,0.1938915,103680.0,103670.0,1.88417587]
[1747189705982,0.1938915,103680.0,103670.0,1.96227622]
[1747189706578,0.1928915,103680.0,103670.0,1.88417587]
[1747189706781,0.1928915,103680.0,103670.0,1.96227622]
[1747189709484,0.1928915,103680.0,103670.0,2.10983377]
[1747189715491,0.85352368,103690.0,103680.0,0.1928915]
[1747189715694,0.85352368,103690.0,103680.0,0.4446922]
[1747189715886,0.85352368,103690.0,103680.0,0.36659185]
[1747189716083,0.85352368,103690.0,103680.0,1.96304711]
[1747189717288,0.6327981,103690.0,103680.0,1.88494676]
[1747189717489,0.71089845,103690.0,103680.0,1.88494676]
[1747189717685,0.74269845,103690.0,103680.0,1.88494676]
[1747189720092,0.6645981,103690.0,103680.0,1.88494676]
[1747189720299,0.74269845,103690.0,103680.0,1.88494676]
[1747189721091,0.74269845,103690.0,103680.0,0.38494676]
[1747189721596,0.74269845,103690.0,103680.0,1.88494676]
[1747189722396,0.74269845,103690.0,103680.0,0.12945526]
[1747189722586,0.77289845,103690.0,103680.0,0.09645526]
[1747189723297,0.77289845,103690.0,103680.0,0.28934676]
[1747189723487,0.77289845,103690.0,103680.0,0.12905526]
[1747189723685,1.0181221,103690.0,103670.0,0.58133644]
[1747189723891,0.8059922,103680.0,103670.0,0.58133644]
[1747189724186,1.02675449,103680.0,103670.0,0.6777824]
[1747189725595,1.02975449,103680.0,103670.0,0.6777824]
[1747189725792,1.02975449,103680.0,103670.0,0.7084824]
[1747189726292,1.03275449,103680.0,103670.0,0.7084824]
[1747189726888,0.95465414,103680.0,103670.0,0.7084824]
[1747189727600,0.95465414,103680.0,103670.0,0.4726824]
[1747189727893,1.03275449,103680.0,103670.0,0.4726824]
[1747189728399,1.03275449,103680.0,103670.0,0.27663262]
[1747189730389,1.03275449,103680.0,103670.0,0.28225333]
[1747189732297,1.37275449,103680.0,103670.0,0.25155333]
[1747189732502,1.03275449,103680.0,103670.0,0.09837507]
[1747189733503,0.87655379,103680.0,103670.0,0.10399578]
[1747189733803,1.03275449,103680.0,103670.0,0.10399578]
[1747189734199,0.87655379,103680.0,103670.0,0.10399578]
[1747189734394,1.03275449,103680.0,103670.0,0.10399578]
[1747189736006,0.87655379,103680.0,103670.0,0.10399578]
[1747189736301,1.03275449,103680.0,103670.0,0.10399578]
[1747189736499,1.03275449,103680.0,103670.0,0.13539578]
[1747189737297,0.87655379,103680.0,103670.0,0.13539578]
[1747189737495,1.03275449,103680.0,103670.0,0.13539578]
[1747189741597,1.03275449,103680.0,103670.0,0.12977507]
[1747189742600,1.03275449,103680.0,103670.0,0.13539578]
[1747189743806,1.11085484,103680.0,103670.0,0.13539578]
[1747189744109,1.03855379,103680.0,103670.0,0.10399578]
[1747189744308,1.19475449,103680.0,103670.0,0.10399578]
[1747189744704,1.19475449,103680.0,103670.0,0.09837507]
[1747189745810,1.03855379,103680.0,103670.0,0.09837507]
[1747189746108,1.19475449,103680.0,103670.0,0.09837507]
[1747189750113,0.87655379,103680.0,103670.0,0.09837507]
[1747189750305,1.03275449,103680.0,103670.0,0.09837507]
[1747189751614,1.10600525,103680.0,103670.0,0.09837507]
[1747189753012,1.10600525,103680.0,103670.0,0.12837507]
[1747189755312,1.20366137,103680.0,103670.0,0.12837507]
[1747189756214,0.1929101,103670.0,103660.0,0.0654]
[1747189756416,1.0930908,103670.0,103660.0,0.0309]
[1747189756615,1.0930908,103670.0,103660.0,0.1416651]
[1747189757517,1.01699045,103670.0,103660.0,0.1733651]
[1747189758116,1.01799045,103670.0,103660.0,0.3353651]
[1747189758415,1.30831045,103670.0,103660.0,0.3353651]
[1747189758719,1.38156121,103670.0,103660.0,0.3353651]
[1747189759113,1.38156121,103670.0,103660.0,0.1733651]
[1747189760318,1.38156121,103670.0,103660.0,0.15905526]
[1747189763321,1.30346086,103670.0,103660.0,0.15905526]
[1747189763517,1.38156121,103670.0,103660.0,0.15905526]
[1747189766119,1.38156121,103670.0,103660.0,0.19025526]
[1747189767420,1.30346086,103670.0,103660.0,0.19025526]
[1747189767617,1.38156121,103670.0,103660.0,0.19025526]
[1747189768820,1.30346086,103670.0,103660.0,0.19025526]
[1747189769215,1.38156121,103670.0,103660.0,0.19025526]
[1747189769527,1.30346086,103670.0,103660.0,0.19025526]
[1747189769716,1.38156121,103670.0,103660.0,0.19025526]
[1747189769917,1.30346086,103670.0,103660.0,0.19025526]
[1747189770128,1.38156121,103670.0,103660.0,0.19025526]
[1747189772717,1.02076121,103670.0,103660.0,0.19025526]
[1747189772918,1.74236121,103670.0,103660.0,0.19025526]
[1747189773318,1.66426086,103670.0,103660.0,0.19025526]
[1747189773719,1.74236121,103670.0,103660.0,0.19025526]
[1747189774027,1.66426086,103670.0,103660.0,0.19025526]
[1747189774226,1.74236121,103670.0,103660.0,0.19025526]
[1747189775225,1.84001733,103670.0,103660.0,0.19025526]
[1747189776934,1.76191698,103670.0,103660.0,0.19025526]
[1747189777227,1.84001733,103670.0,103660.0,0.19025526]
[1747189777930,1.76191698,103670.0,103660.0,0.19025526]
[1747189778120,1.84001733,103670.0,103660.0,0.19025526]
[1747189779828,1.84001733,103670.0,103660.0,0.12735526]
[1747189779829,2.29811768,103670.0,103660.0,0.12735526]
[1747189780027,2.29811768,103670.0,103660.0,0.11476348]
[1747189780529,1.84001733,103670.0,103660.0,0.11476348]
[1747189781532,1.91811768,103670.0,103660.0,0.11476348]
[1747189781828,1.84001733,103670.0,103660.0,0.11476348]
[1747189782629,1.91811768,103670.0,103660.0,0.09645526]
[1747189782832,1.84001733,103670.0,103660.0,0.09645526]
[1747189783132,1.76191698,103670.0,103660.0,0.09645526]
[1747189783331,1.68866622,103670.0,103660.0,0.09645526]
[1747189783530,1.84486692,103670.0,103660.0,0.09645526]
[1747189784634,1.76676657,103670.0,103660.0,0.09645526]
[1747189785833,0.1929288,103660.0,103650.0,0.03516454]
[1747189786032,0.1929288,103660.0,103650.0,0.0313]
[1747189786033,0.90874182,103660.0,103650.0,0.0313]
[1747189786330,0.1929474,103650.0,103640.0,0.0179]
[1747189786630,0.1929474,103650.0,103640.0,0.14646457]
[1747189786631,0.9366274,103650.0,103640.0,0.14646457]
[1747189786836,1.01472775,103650.0,103640.0,0.14646457]
[1747189787044,0.9366274,103650.0,103640.0,0.05]
[1747189787336,0.6477474,103650.0,103640.0,0.16075584]
[1747189787630,1.01412775,103650.0,103640.0,0.16075584]
[1747189787930,0.95028775,103650.0,103640.0,0.14848318]
[1747189788331,0.5839474,103650.0,103640.0,0.14848318]
[1747189788539,0.63184775,103650.0,103640.0,0.14848318]
[1747189788935,0.63184775,103650.0,103640.0,0.15048318]
[1747189789135,0.66224775,103650.0,103640.0,0.34408318]
[1747189789634,0.5841474,103650.0,103640.0,0.34408318]
[1747189789939,0.66324775,103650.0,103640.0,0.34208318]
[1747189790327,0.66324775,103650.0,103640.0,0.34770389]
[1747189790727,0.66524775,103650.0,103640.0,0.34570389]
[1747189792128,0.5871474,103650.0,103640.0,0.34570389]
[1747189792326,0.66524775,103650.0,103640.0,0.34570389]
[1747189793539,1.02604775,103650.0,103640.0,0.34570389]
[1747189793740,0.9479474,103650.0,103640.0,0.34570389]
[1747189793934,1.02604775,103650.0,103640.0,0.34570389]
[1747189796741,0.9479474,103650.0,103640.0,0.34570389]
[1747189796931,1.02604775,103650.0,103640.0,0.34570389]
[1747189797542,0.9479474,103650.0,103640.0,0.34570389]
[1747189797737,1.02604775,103650.0,103640.0,0.34570389]
[1747189798337,0.99564775,103650.0,103640.0,0.53866989]
[1747189798538,0.9175474,103650.0,103640.0,0.53866989]
[1747189798844,0.5567474,103650.0,103640.0,0.61677024]
[1747189799237,0.5567474,103650.0,103640.0,0.53866989]
[1747189799742,0.5537474,103650.0,103640.0,2.03866989]
[1747189800443,0.1929474,103650.0,103640.0,2.69905424]
[1747189800641,0.1929474,103650.0,103640.0,2.77715459]
[1747189800837,0.1929474,103650.0,103640.0,2.69905424]
[1747189801144,0.1929474,103650.0,103640.0,2.46325424]
[1747189801635,0.27104775,103650.0,103640.0,2.38515389]
[1747189801835,0.1929474,103650.0,103640.0,2.13515389]
[1747189802045,0.27104775,103650.0,103640.0,2.13515389]
[1747189802242,0.1929474,103650.0,103640.0,2.13515389]
[1747189802941,0.1929474,103650.0,103640.0,2.13915389]
[1747189803441,0.63184775,103650.0,103640.0,1.84970389]
[1747189803741,0.66264775,103650.0,103640.0,0.34970389]
[1747189803952,0.72584775,103650.0,103640.0,0.34970389]
[1747189804246,0.72584775,103650.0,103640.0,1.68770389]
[1747189804434,0.72584775,103650.0,103640.0,0.15048318]
[1747189804741,0.72584775,103650.0,103640.0,0.14848318]
[1747189804945,0.72584775,103650.0,103640.0,0.09848318]
[1747189805149,0.72584775,103650.0,103640.0,0.24604073]
[1747189805338,1.1034681,103650.0,103640.0,0.24604073]
[1747189805738,1.1044681,103650.0,103640.0,0.24404073]
[1747189805938,1.02636775,103650.0,103640.0,0.24404073]
[1747189806144,1.02836775,103650.0,103640.0,0.24404073]
[1747189806338,1.03036775,103650.0,103640.0,0.24404073]
[1747189806843,1.1064681,103650.0,103640.0,0.24404073]
[1747189807142,1.1094681,103650.0,103640.0,0.24404073]
[1747189807342,1.03136775,103650.0,103640.0,0.24404073]
[1747189807537,1.03136775,103650.0,103630.0,0.19797963]
[1747189807538,0.192966,103640.0,103630.0,0.19797963]
[1747189807743,0.7721667,103640.0,103630.0,0.19797963]
[1747189807943,0.7721667,103640.0,103630.0,0.29446281]
[1747189808145,0.9341667,103640.0,103630.0,0.19797963]
[1747189808446,1.01226705,103640.0,103630.0,0.19797963]
[1747189808642,0.777966,103640.0,103630.0,0.19797963]
[1747189808845,0.9341667,103640.0,103630.0,0.19797963]
[1747189809048,0.9351667,103640.0,103630.0,0.35777212]
[1747189809244,0.7751667,103640.0,103630.0,0.51977212]
[1747189809750,0.618966,103640.0,103630.0,0.51977212]
[1747189809941,0.69706635,103640.0,103630.0,0.51977212]
[1747189810142,0.71128425,103640.0,103630.0,0.35777212]
[1747189810442,0.7893846,103640.0,103630.0,0.35777212]
[1747189811142,0.7893846,103640.0,103630.0,0.16172234]
[1747189812849,0.6331839,103640.0,103630.0,0.16172234]
[1747189813150,0.7893846,103640.0,103630.0,0.16172234]
[1747189815146,0.7893846,103640.0,103630.0,0.32372234]
[1747189815350,0.6331839,103640.0,103630.0,0.32372234]
[1747189815651,0.7893846,103640.0,103630.0,0.32372234]
[1747189817149,0.7893846,103640.0,103630.0,0.16172234]
[1747189817561,0.7893846,103640.0,103630.0,0.09842234]
[1747189819145,0.7893846,103640.0,103630.0,0.12932234]
[1747189819556,0.6331839,103640.0,103630.0,0.12932234]
[1747189819754,0.7893846,103640.0,103630.0,0.13494305]
[1747189821153,0.7893846,103640.0,103630.0,0.29694305]
[1747189822163,0.7893846,103640.0,103630.0,0.13494305]
[1747189823458,0.6331839,103640.0,103630.0,0.13494305]
[1747189823665,0.7893846,103640.0,103630.0,0.13494305]
[1747189824669,0.6331839,103640.0,103630.0,0.13494305]
[1747189824976,0.7893846,103640.0,103630.0,0.13494305]
[1747189825572,0.7893846,103640.0,103630.0,0.10404305]
[1747189826772,0.6331839,103640.0,103630.0,0.10404305]
[1747189827272,0.7893846,103640.0,103630.0,0.10404305]
[1747189827572,0.71128425,103640.0,103630.0,0.10404305]
[1747189827966,0.7893846,103640.0,103630.0,0.10404305]
[1747189828364,0.8195846,103640.0,103630.0,0.10404305]
[1747189828564,0.6633839,103640.0,103630.0,0.10404305]
[1747189828768,0.8195846,103640.0,103630.0,0.10404305]
[1747189829168,0.6633839,103640.0,103630.0,0.10404305]
[1747189829562,0.8195846,103640.0,103630.0,0.10404305]
[1747189829765,0.6633839,103640.0,103630.0,0.13484305]
[1747189830474,0.8195846,103640.0,103630.0,0.16514305]
[1747189831170,0.8195846,103640.0,103630.0,0.32714305]
[1747189832174,0.8195846,103640.0,103630.0,0.16514305]
[1747189832770,0.6633839,103640.0,103630.0,0.16514305]
[1747189832972,0.8195846,103640.0,103630.0,0.16514305]
[1747189833671,0.8225846,103640.0,103630.0,0.16614305]
[1747189833870,0.8215846,103640.0,103630.0,0.16614305]
[1747189834072,0.6693839,103640.0,103630.0,0.16614305]
[1747189834270,0.8255846,103640.0,103630.0,0.16614305]
[1747189835377,0.6693839,103640.0,103630.0,0.16614305]
[1747189835574,0.8255846,103640.0,103630.0,0.16614305]
[1747189836075,0.8255846,103640.0,103630.0,0.32814305]
[1747189836466,0.6693839,103640.0,103630.0,0.32814305]
[1747189836670,0.8255846,103640.0,103630.0,0.32814305]
[1747189836981,0.84018408,103640.0,103630.0,0.32814305]
[1747189837279,0.99638478,103640.0,103630.0,0.32814305]
[1747189837471,0.91828443,103640.0,103630.0,0.32814305]
[1747189837670,0.99638478,103640.0,103630.0,0.32814305]
[1747189838378,0.84018408,103640.0,103630.0,0.32814305]
[1747189839179,0.91828443,103640.0,103630.0,0.32814305]
[1747189839479,0.84018408,103640.0,103630.0,0.32814305]
[1747189839681,0.91828443,103640.0,103630.0,0.32814305]
[1747189839978,0.84018408,103640.0,103630.0,0.32814305]
[1747189840182,0.84514037,103640.0,103630.0,0.32814305]
[1747189841274,0.73604002,103640.0,103630.0,0.32814305]
[1747189841471,0.78394037,103640.0,103630.0,0.32814305]
[1747189841671,0.78394037,103640.0,103630.0,0.35894305]
[1747189841877,0.70584002,103640.0,103630.0,0.35894305]
[1747189842180,0.67464002,103640.0,103630.0,0.35894305]
[1747189842572,0.75274037,103640.0,103630.0,0.35894305]
[1747189842772,0.67464002,103640.0,103630.0,0.35894305]
[1747189843375,0.75274037,103640.0,103630.0,0.35894305]
[1747189844271,0.68568425,103640.0,103630.0,0.35894305]
[1747189844474,0.6075839,103640.0,103630.0,0.35894305]
[1747189844676,0.68568425,103640.0,103630.0,0.35894305]
[1747189844975,0.6075839,103640.0,103630.0,0.35894305]
[1747189845177,0.68568425,103640.0,103630.0,0.35894305]
[1747189845688,0.6075839,103640.0,103630.0,0.35894305]
[1747189845884,0.68568425,103640.0,103630.0,0.35894305]
[1747189846083,0.6075839,103640.0,103630.0,0.35894305]
[1747189846279,0.68568425,103640.0,103630.0,0.35894305]
[1747189846685,0.68568425,103640.0,103630.0,0.55192765]
[1747189846887,0.65508425,103640.0,103630.0,0.35894305]
[1747189847189,0.5769839,103640.0,103630.0,0.35894305]
[1747189847386,0.65508425,103640.0,103630.0,0.35894305]
[1747189847574,0.68648425,103640.0,103630.0,0.35894305]
[1747189850689,0.68648425,103640.0,103630.0,0.55192765]
[1747189851590,0.6083839,103640.0,103630.0,0.55192765]
[1747189851889,0.68648425,103640.0,103630.0,0.35894305]
[1747189857290,0.7645846,103640.0,103630.0,0.35894305]
[1747189857678,0.8277846,103640.0,103630.0,0.35894305]
[1747189859983,0.6715839,103640.0,103630.0,0.35894305]
[1747189860192,0.8277846,103640.0,103630.0,0.35894305]
[1747189861193,0.6715839,103640.0,103630.0,0.35894305]
[1747189861490,0.74968425,103640.0,103630.0,0.35894305]
[1747189861893,0.6715839,103640.0,103630.0,0.35894305]
[1747189862493,0.74968425,103640.0,103630.0,0.35894305]
[1747189862992,0.6715839,103640.0,103630.0,0.35894305]
[1747189863196,0.74968425,103640.0,103630.0,0.35894305]
[1747189863895,0.6715839,103640.0,103630.0,0.35894305]
[1747189864284,0.74968425,103640.0,103630.0,0.35894305]
[1747189864493,0.6715839,103640.0,103630.0,0.35894305]
[1747189865195,0.74968425,103640.0,103630.0,0.35894305]
[1747189865697,0.6715839,103640.0,103630.0,0.35894305]
[1747189865995,0.74968425,103640.0,103630.0,0.35894305]
[1747189866397,0.6715839,103640.0,103630.0,0.35894305]
[1747189866793,0.74968425,103640.0,103630.0,0.35894305]
[1747189867691,0.6715839,103640.0,103630.0,0.35894305]
[1747189867887,0.74968425,103640.0,103630.0,0.35894305]
[1747189868094,0.74968425,103640.0,103630.0,0.32814305]
[1747189868293,0.8277846,103640.0,103630.0,0.26704305]
[1747189868500,1.55400495,103640.0,103630.0,0.19051065]
[1747189868800,1.55400495,103640.0,103630.0,0.16862071]
[1747189868801,1.1359046,103640.0,103630.0,0.16862071]
[1747189869099,1.1359046,103640.0,103630.0,0.00662071]
[1747189870589,0.9797039,103640.0,103630.0,0.1031132]
[1747189870790,1.1359046,103640.0,103630.0,0.1031132]
[1747189870992,0.8277846,103640.0,103630.0,0.1031132]
[1747189871199,1.53536072,103640.0,103630.0,0.2651132]
[1747189871805,1.37916002,103640.0,103630.0,0.2651132]
[1747189872191,1.53536072,103640.0,103630.0,0.2651132]
[1747189872595,1.53536072,103640.0,103630.0,0.29099249]
[1747189873399,1.37916002,103640.0,103630.0,0.29099249]
[1747189873696,0.76924002,103640.0,103630.0,0.2966132]
[1747189873898,0.84734037,103640.0,103630.0,0.3266132]
[1747189874299,0.82285188,103640.0,103630.0,0.3266132]
[1747189875587,0.74475153,103640.0,103630.0,0.3266132]
[1747189875799,0.82285188,103640.0,103630.0,0.3266132]
[1747189875995,0.90095223,103640.0,103630.0,0.3266132]
[1747189876197,0.74475153,103640.0,103630.0,0.3266132]
[1747189876393,0.90095223,103640.0,103630.0,0.3266132]
[1747189877606,0.82285188,103640.0,103630.0,0.3266132]
[1747189878801,0.74968425,103640.0,103630.0,0.3266132]
[1747189879000,0.8277846,103640.0,103630.0,0.3266132]
[1747189881109,0.8277846,103640.0,103630.0,0.1646132]
[1747189881802,0.6715839,103640.0,103630.0,0.1646132]
[1747189882008,0.8277846,103640.0,103630.0,0.1646132]
[1747189883001,0.233366,103640.0,103630.0,0.43569815]
[1747189883309,0.594166,103640.0,103630.0,0.3585132]
[1747189883514,0.73326635,103640.0,103630.0,0.3585132]
[1747189883705,0.655166,103640.0,103630.0,0.5514978]
[1747189884006,0.73326635,103640.0,103630.0,0.5514978]
[1747189884306,0.72826635,103640.0,103630.0,0.5504978]
[1747189884609,0.72526635,103640.0,103630.0,0.5514978]
[1747189885519,0.647166,103640.0,103630.0,0.5514978]
[1747189885706,0.74071397,103640.0,103630.0,0.5504978]
[1747189886913,0.66261362,103640.0,103630.0,0.5504978]
[1747189887116,0.74071397,103640.0,103630.0,0.5504978]
[1747189887506,0.66261362,103640.0,103630.0,0.5504978]
[1747189887813,0.74071397,103640.0,103630.0,0.5504978]
[1747189889917,0.66261362,103640.0,103630.0,0.5504978]
[1747189890212,0.74071397,103640.0,103630.0,0.5504978]
[1747189892203,0.81881432,103640.0,103630.0,0.5185978]
[1747189892511,0.74071397,103640.0,103630.0,0.5185978]
[1747189892908,0.74071397,103640.0,103630.0,0.51297709]
[1747189893211,0.81881432,103640.0,103630.0,0.35097709]
[1747189893399,0.74071397,103640.0,103630.0,0.35097709]
[1747189893803,0.74071397,103640.0,103630.0,0.3565978]
[1747189894004,0.66261362,103640.0,103630.0,0.3565978]
[1747189894306,0.74071397,103640.0,103630.0,0.5185978]
[1747189894503,0.74071397,103640.0,103630.0,0.5494978]
[1747189895208,0.66261362,103640.0,103630.0,0.5494978]
[1747189895513,0.74071397,103640.0,103630.0,0.5494978]
[1747189896619,0.66261362,103640.0,103630.0,0.5494978]
[1747189896813,0.74071397,103640.0,103630.0,0.5494978]
[1747189897518,0.66261362,103640.0,103630.0,0.5494978]
[1747189897703,0.74071397,103640.0,103630.0,0.5494978]
[1747189900917,0.66261362,103640.0,103630.0,0.5494978]
[1747189901124,0.74071397,103640.0,103630.0,0.5494978]
[1747189901621,0.66261362,103640.0,103630.0,0.5494978]
[1747189901811,0.74071397,103640.0,103630.0,0.5494978]
[1747189902122,0.66261362,103640.0,103630.0,0.5494978]
[1747189902321,0.74071397,103640.0,103630.0,0.5494978]
[1747189903116,0.60161362,103640.0,103630.0,0.62759815]
[1747189903826,0.60161362,103640.0,103630.0,0.5494978]
[1747189905812,0.226366,103640.0,103630.0,0.98839815]
[1747189906015,0.194966,103640.0,103630.0,0.98839815]
[1747189907215,0.193966,103640.0,103630.0,0.98939815]
[1747189907617,0.192966,103640.0,103630.0,2.49039815]
[1747189907821,0.3376817,103650.0,103640.0,0.192966]
[1747189908015,0.3376817,103650.0,103640.0,0.33586635]
[1747189908210,0.3376817,103650.0,103640.0,0.52816635]
[1747189908522,0.1929607,103650.0,103640.0,0.62464953]
[1747189908711,0.1929607,103650.0,103640.0,0.79923388]
[1747189908912,0.1929607,103650.0,103640.0,0.64303318]
[1747189909112,0.1929607,103650.0,103640.0,1.01145353]
[1747189909312,0.1939607,103650.0,103640.0,1.01145353]
[1747189909711,0.1949607,103650.0,103640.0,1.01145353]
[1747189910022,0.1949607,103650.0,103640.0,0.93335318]
[1747189910221,0.1949607,103650.0,103640.0,1.01145353]
[1747189910515,0.1939607,103650.0,103640.0,1.01145353]
[1747189910723,0.1929607,103650.0,103640.0,1.01245353]
[1747189910912,0.1929607,103650.0,103640.0,1.01345353]
[1747189911316,0.2259607,103650.0,103640.0,1.01345353]
[1747189911516,0.2259607,103650.0,103640.0,0.91696953]
[1747189911824,0.1929607,103650.0,103640.0,0.91696953]
[1747189912907,0.1929607,103650.0,103640.0,0.83886918]
[1747189913113,0.1929607,103650.0,103640.0,2.70720953]
[1747189913621,0.1929607,103650.0,103640.0,2.94300953]
[1747189914625,0.2230607,103650.0,103640.0,2.94300953]
[1747189917014,0.2230607,103650.0,103640.0,3.02110988]
[1747189917219,0.2230607,103650.0,103640.0,2.94300953]
[1747189917821,0.2230607,103650.0,103640.0,2.86490918]
[1747189918219,0.2230607,103650.0,103640.0,2.94300953]
[1747189919527,0.1929607,103650.0,103640.0,2.94300953]
[1747189920030,0.1929607,103650.0,103640.0,3.02110988]
[1747189920622,0.1929607,103650.0,103640.0,2.94300953]
[1747189920822,0.2230607,103650.0,103640.0,2.94300953]
[1747189923330,0.2230607,103650.0,103640.0,2.86490918]
[1747189923524,0.6502122,103660.0,103650.0,0.1929474]
[1747189923720,0.6803122,103660.0,103650.0,0.36354775]
[1747189924221,0.6803122,103660.0,103650.0,0.62203093]
[1747189924626,0.7127122,103660.0,103650.0,0.62203093]
[1747189924827,0.7433122,103660.0,103650.0,0.62203093]
[1747189925127,0.7443122,103660.0,103650.0,0.54393058]
[1747189925325,0.7443122,103660.0,103650.0,0.62203093]
[1747189925627,0.7453122,103660.0,103650.0,0.62203093]
[1747189926327,0.82341255,103660.0,103650.0,0.35098318]
[1747189926524,0.82341255,103660.0,103650.0,0.45143058]
[1747189926724,0.7453122,103660.0,103650.0,0.48433058]
[1747189927032,0.82341255,103660.0,103650.0,0.51483058]
[1747189927327,0.7453122,103660.0,103650.0,0.51483058]
[1747189927523,0.82341255,103660.0,103650.0,0.45143058]
[1747189927829,0.7453122,103660.0,103650.0,0.45143058]
[1747189928025,0.7453122,103660.0,103650.0,0.48173058]
[1747189928234,0.7453122,103660.0,103650.0,0.42833093]
[1747189928426,0.7453122,103660.0,103650.0,0.35023058]
[1747189929717,0.7453122,103660.0,103650.0,0.42833093]
[1747189929918,0.6664762,103660.0,103650.0,0.45883093]
[1747189930122,0.6664762,103660.0,103650.0,0.62083093]
[1747189930522,0.6664762,103660.0,103650.0,0.54273058]
[1747189930725,0.002,103660.0,103650.0,1.65830293]
[1747189931633,0.001,103660.0,103650.0,1.65930293]
[1747189931823,0.7630132,103670.0,103660.0,0.1929288]
[1747189932022,0.7618132,103670.0,103660.0,0.36892915]
[1747189932223,0.7618132,103670.0,103660.0,0.53092915]
[1747189932425,0.7618132,103670.0,103660.0,2.12739372]
[1747189932929,0.7135822,103670.0,103660.0,2.12739372]
[1747189933335,0.7135822,103670.0,103660.0,2.12939372]
[1747189934228,0.3927,103670.0,103660.0,2.20749407]
[1747189934432,0.80494663,103680.0,103670.0,0.1929101]
[1747189934618,0.83584663,103680.0,103670.0,0.2852101]
[1747189934824,0.37859583,103680.0,103670.0,0.36331045]
[1747189935126,0.37859583,103680.0,103670.0,0.82057502]
[1747189935527,0.13846763,103680.0,103670.0,0.74247467]
[1747189935831,0.33135913,103680.0,103670.0,0.82057502]
[1747189936028,0.33235913,103680.0,103670.0,0.82057502]
[1747189936436,0.33235913,103680.0,103670.0,0.74247467]
[1747189936640,0.33235913,103680.0,103670.0,0.82057502]
[1747189936826,0.33135913,103680.0,103670.0,0.82157502]
[1747189937021,0.33135913,103680.0,103670.0,0.74347467]
[1747189937233,0.33135913,103680.0,103670.0,0.82157502]
[1747189937626,0.07616763,103680.0,103670.0,0.82157502]
[1747189937831,0.26905913,103680.0,103670.0,0.82157502]
[1747189938133,0.26905913,103680.0,103670.0,2.32157502]
[1747189938337,0.1958915,103680.0,103670.0,2.32157502]
[1747189938530,0.1948915,103680.0,103670.0,2.32257502]
[1747189939538,0.1948915,103680.0,103670.0,2.61273502]
[1747189940327,0.1948915,103680.0,103670.0,2.53463467]
[1747189940531,0.1948915,103680.0,103670.0,2.84853502]
[1747189940733,0.2576915,103680.0,103670.0,2.84853502]
[1747189942534,0.2885915,103680.0,103670.0,2.84853502]
[1747189943335,0.2885915,103680.0,103670.0,3.13833502]
[1747189943736,0.1948915,103680.0,103670.0,3.13833502]
[1747189944129,0.2257915,103680.0,103670.0,3.13833502]
[1747189944531,0.0329,103680.0,103670.0,3.21643537]
[1747189944728,0.0329,103680.0,103670.0,3.13833502]
[1747189944932,0.2257915,103680.0,103670.0,3.13833502]
[1747189946037,0.2257915,103680.0,103670.0,3.06023467]
[1747189946238,0.2257915,103680.0,103670.0,3.13833502]
[1747189946641,0.0329,103680.0,103670.0,3.13833502]
[1747189946940,0.2257915,103680.0,103670.0,3.13833502]
[1747189947939,0.2257915,103680.0,103670.0,3.06023467]
[1747189948350,0.2257915,103680.0,103670.0,3.13833502]
[1747189949539,0.0329,103680.0,103670.0,3.13833502]
[1747189950142,0.0329,103680.0,103670.0,3.30033502]
[1747189950337,0.0329,103680.0,103670.0,3.22223467]